Workbook

Sheet Cuadro 5, Informe general XCNPV
A1: Cuadro 5
A2: REPÚBLICA DOMININCANA: Población, superficie en km² y densidad poblacional, según región, provincia, municipio y distrito municipal
A3: Provincia, municipio y distrito municipal | B3: Población | C3: Superficie en km² | D3: Habitante/km²
A4: Total | B4: 10773983 | C4: 48195.9001 | D4: =+B4/C4 -> 223.5456331
A6: Región Ozama | B6: 3798698 | C6: 1396.039594 | D6: =+B6/C6 -> 2721.053196
A7: Distrito nacional | B7: 1029110 | C7: 91.22249341 | D7: =+B7/C7 -> 11281.31847
A8: Municipio Santo Domingo de guzmán | B8: 1029110 | C8: 91.22249341 | D8: =+B8/C8 -> 11281.31847
A9: Santo Domingo de guzmán | B9: 1029110 | C9: 91.22249341 | D9: 11281.31847
A10: Provincia Santo Domingo | B10: 2769588 | C10: 1304.817101 | D10: 2122.587141
A11: Municipio Santo Domingo Este | B11: 1029117 | C11: 165.4838643 | D11: 6218.835922
A12: Santo Domingo Este | B12: 961844 | C12: 131.085929 | D12: 7337.507597
A13: San Luis | B13: 67273 | C13: 34.39793532 | D13: 1955.727847
A14: Municipio Santo Domingo Oeste | B14: 410578 | C14: 54.46764602 | D14: 7538.016236
A15: Santo Domingo Oeste | B15: 410578 | C15: 54.46764602 | D15: 7538.016236
A16: Municipio Santo Domingo Norte | B16: 674274 | C16: 388.1447845 | D16: 1737.171352
A17: Santo Domingo Norte | B17: 588261 | C17: 172.9499332 | D17: 3401.336959
A18: La Victoria (D.M.) | B18: 86013 | C18: 215.1948512 | D18: 399.6982247
A19: Municipio Boca Chica | B19: 167040 | C19: 141.2454969 | D19: 1182.621773
A20: Boca Chica | B20: 82730 | C20: 106.7006985 | D20: 775.3463773
A21: La Caleta | B21: 84310 | C21: 34.54479848 | D21: 2440.598982
A22: Municipio San Antonio de Guerra | B22: 59299 | C22: 287.4323718 | D22: 206.3059204
A23: San Antonio de Guerra | B23: 54562 | C23: 232.2950357 | D23: 234.8823333
A24: Hato Viejo (D.M.) | B24: 4737 | C24: 55.13733606 | D24: 85.91274694
A25: Municipio Los Alcarrizos | B25: 336307 | C25: 45.05671215 | D25: 7464.082131
A26: Los Alcarrizos | B26: 255176 | C26: 31.79872 | D26: 8024.725523
A27: Palmarejo-Villa Linda (D.M.) | B27: 19567 | C27: 6.972078753 | D27: 2806.48006
A28: Pantoja (D.M.) | B28: 61564 | C28: 6.285913392 | D28: 9793.962493
A29: Municipio Pedro Brand | B29: 92973 | C29: 222.9862251 | D29: 416.9450375
A30: Pedro Brand | B30: 39054 | C30: 54.63634396 | D30: 714.7989263
A31: La Guáyiga (D.M.) | B31: 42151 | C31: 27.14648385 | D31: 1552.724111
A32: La Cuaba (D.M.) | B32: 11768 | C32: 141.2033973 | D32: 83.34077101
A34: Región Cibao Norte | B34: 1654092 | C34: 5454.850282 | D34: =+B34/C34 -> 303.2332538
A35: Provincia Espaillat | B35: 241058 | C35: 860.2806506 | D35: 280.2085573
A36: Municipio Moca | B36: 164022 | C36: 251.8604959 | D36: 651.2414717
A37: Moca | B37: 97196 | C37: 74.96175427 | D37: 1296.607863
A38: José Contreras (D.M.) | B38: 4296 | C38: 67.63325673 | D38: 63.5190468
A39: Juan López (D.M.) | B39: 14326 | C39: 22.00431232 | D39: 651.054202
A40: Las Lagunas (D.M.) | B40: 16869 | C40: 41.60018695 | D40: 405.5029854
A41: Canca la Reyna (D.M.) | B41: 11395 | C41: 14.85698557 | D41: 766.9792736
A42: El Higüerito (D.M.) | B42: 11343 | C42: 15.20431542 | D42: 746.038193
A43: Monte de la Jagua (D.M.) | B43: 6282 | C43: 12.2147435 | D43: 514.296514
A44: La Ortega (D.M.) | B44: 2315 | C44: 3.384941139 | D44: 683.9114493
A45: Municipio Cayetano Germosén | B45: 7960 | C45: 17.7354167 | D45: 448.8194518
A46: Cayetano Germosén | B46: 7960 | C46: 17.7354167 | D46: 448.8194518
A47: Municipio Gaspar Hernández | B47: 40781 | C47: 369.5537898 | D47: 110.3520005
A48: Gaspar Hernández | B48: 15076 | C48: 150.1545688 | D48: 100.4032053
A49: Joba Arriba (D.M.) | B49: 3742 | C49: 68.06948962 | D49: 54.97323428
A50: Veragua (D.M.) | B50: 18173 | C50: 65.25840931 | D50: 278.4775202
A51: Villa Magante (D.M.) | B51: 3790 | C51: 86.07132203 | D51: 44.03324953
A52: Municipio Jamao al Norte | B52: 7982 | C52: 130.0357726 | D52: 61.38310896
A53: Jamao al Norte | B53: 7982 | C53: 130.0357726 | D53: 61.38310896
A54: Municipio San Víctor | B54: 20313 | C54: 91.0951756 | D54: 222.9865618
A55: San Víctor (D.M.) | B55: 20313 | C55: 91.0951756 | D55: 222.9865618
A56: Provincia Puerto Plata | B56: 338355 | C56: 1789.701708 | D56: 189.0566447
A57: Municipio Puerto Plata | B57: 162093 | C57: 508.119792 | D57: 319.0054836
A58: Puerto Plata | B58: 146677 | C58: 254.5393998 | D58: 576.2447782
A59: Yásica Arriba (D.M.) | B59: 7360 | C59: 129.9687268 | D59: 56.62900748
A60: Maimón (D.M.) | B60: 8056 | C60: 123.6116654 | D60: 65.17184258
A61: Municipio Altamira | B61: 17676 | C61: 176.8603177 | D61: 99.94327854
A62: Altamira | B62: 13565 | C62: 102.5342911 | D62: 132.2972038
A63: Río Grande (D.M.) | B63: 4111 | C63: 74.32602669 | D63: 55.31036951
A64: Municipio Guananico | B64: 6466 | C64: 59.50538224 | D64: 108.6624395
A65: Guananico | B65: 6466 | C65: 59.50538224 | D65: 108.6624395
A66: Municipio Imbert | B66: 22925 | C66: 165.6286976 | D66: 138.4120043
A67: Imbert | B67: 22925 | C67: 165.6286976 | D67: 138.4120043
A68: Municipio Los Hidalgos | B68: 13605 | C68: 99.0868351 | D68: 137.3038102
A69: Los Hidalgos | B69: 10027 | C69: 66.46297488 | D69: 150.8659523
A70: Navas (D.M.) | B70: 3578 | C70: 32.62386022 | D70: 109.6743296
A71: Municipio Luperón | B71: 17577 | C71: 245.0193152 | D71: 71.73720155
A72: Luperón | B72: 9349 | C72: 146.673633 | D72: 63.74015429
A73: La Isabela (D.M.) | B73: 2197 | C73: 44.58382206 | D73: 49.27796448
A74: Belloso (D.M.) | B74: 3255 | C74: 31.63074853 | D74: 102.9061958
A75: El Estrecho Luperón Omar Bross (D.M.) | B75: 2776 | C75: 22.13111158 | D75: 125.4342779
A76: Municipio Sosúa | B76: 56982 | C76: 247.2474906 | D76: 230.4654331
A77: Sosúa | B77: 36035 | C77: 131.7614698 | D77: 273.4866275
A78: Cabarete (D.M.) | B78: 16148 | C78: 93.62110991 | D78: 172.482467
A79: Sabaneta de Yásica (D.M.) | B79: 4799 | C79: 21.86491088 | D79: 219.4840869
A80: Municipio Villa Isabela | B80: 20278 | C80: 216.7732988 | D80: 93.54473135
A81: Villa Isabela | B81: 11850 | C81: 49.4628642 | D81: 239.5736719
A82: Estero Hondo (D.M.) | B82: 4294 | C82: 68.44990252 | D82: 62.73201045
A83: La Jaiba (D.M.) | B83: 2174 | C83: 58.64051394 | D83: 37.07334493
A84: Gualete (D.M.) | B84: 1960 | C84: 40.22001815 | D84: 48.73195216
A85: Municipio Villa Montellano | B85: 20753 | C85: 71.4605788 | D85: 290.4118655
A86: Villa Montellano | B86: 20753 | C86: 71.4605788 | D86: 290.4118655
A87: Provincia Santiago | B87: 1074679 | C87: 2804.867924 | D87: 383.1478092
A88: Municipio de Santiago | B88: 771748 | C88: 431.6689974 | D88: 1787.823552
A89: Santiago | B89: 561005 | C89: 148.2939418 | D89: 3783.060814
A90: Pedro García (D.M.) | B90: 3361 | C90: 52.51327147 | D90: 64.00286834
A91: La Canela (D.M.) | B91: 20214 | C91: 93.4869047 | D91: 216.2227968
A92: San Francisco de Jacagua (D.M.) | B92: 47223 | C92: 82.74212234 | D92: 570.7250269
A93: Hato del Yaque (D.M.) | B93: 34458 | C93: 37.96439824 | D93: 907.6398309
A94: Santiago Oeste (D.M.) | B94: 105487 | C94: 16.66835885 | D94: 6328.577453
A95: Municipio Bisonó | B95: 49367 | C95: 92.29772821 | D95: 534.8669026
A96: Bisonó | B96: 49367 | C96: 92.29772821 | D96: 534.8669026
A97: Municipio Jánico | B97: 14385 | C97: 402.2973727 | D97: 35.75713135
A98: Jánico | B98: 6421 | C98: 125.1431256 | D98: =+B98/C98 -> 51.30925065
A99: Juancalito (D.M.) | B99: 3586 | C99: 176.9298654 | D99: 20.26791798
A100: El Caimito (D.M.) | B100: 4378 | C100: 100.2243817 | D100: 43.68198561
A101: Municipio Licey al Medio | B101: 30103 | C101: 26.71742077 | D101: 1126.718041
A102: Licey al Medio | B102: 15437 | C102: 13.8312275 | D102: 1116.097613
A103: Las Palomas (D.M.) | B103: 14666 | C103: 12.88619326 | D103: 1138.11734
A104: Municipio San José de las Matas | B104: 37411 | C104: 1516.141465 | D104: 24.67513809
A105: San José de las Matas | B105: 23306 | C105: 667.8827078 | D105: 34.89534873
A106: El Rubio (D.M.) | B106: 6440 | C106: 588.9704056 | D106: 10.93433548
A107: La cuesta (D.M.) | B107: 4002 | C107: 113.1952401 | D107: 35.35484351
A108: Las Placetas (D.M.) | B108: 3663 | C108: 146.0931113 | D108: 25.07305079
A109: Municipio Tamboril | B109: 57669 | C109: 71.93279134 | D109: 801.7066894
A110: Tamboril | B110: 44242 | C110: 44.79191708 | D110: 987.7228501
A111: Canca La Piedra (D.M.) | B111: 13427 | C111: 27.14087426 | D111: 494.7150881
A112: Municipio Villa González | B112: 42198 | C112: 101.2576938 | D112: 416.7387031
A113: Villa González | B113: 31206 | C113: 55.78494708 | D113: 559.3982182
A114: Palmar Arriba (D.M.) | B114: 6874 | C114: 12.64710167 | D114: 543.52374
A115: El Limón (D.M.) | B115: 4118 | C115: 32.82564507 | D115: 125.4506954
A116: Municipio Puñal | B116: 46090 | C116: 51.45090606 | D116: 895.8054101
A117: Puñal | B117: 25915 | C117: 23.56271339 | D117: 1099.830888
A118: Guayabal (D.M.) | B118: 7670 | C118: 19.76122015 | D118: 388.133928
A119: Canabacoa (D.M.) | B119: 12505 | C119: 8.126972516 | D119: 1538.70337
A120: Municipio Sabana Iglesia | B120: 14018 | C120: 58.69400468 | D120: 238.8318888
A121: Sabana Iglesia | B121: 14018 | C121: 58.69400468 | D121: 238.8318888
A122: Municipio Baitoa | B122: 11690 | C122: 52.40954392 | D122: 223.0509775
A123: Baitoa | B123: 11690 | C123: 52.40954392 | D123: 223.0509775
A125: Región Cibao Sur | B125: 800908 | C125: 4474.020248 | D125: =+B125/C125 -> 179.0130477
A126: Provincia La Vega | B126: 442719 | C126: 2293.507029 | D126: 193.0314555
A127: Municipio La Vega | B127: 282055 | C127: 648.3340369 | D127: 435.0458004
A128: La Vega | B128: 221572 | C128: 363.9464807 | D128: 608.8037987
A129: Río Verde Arriba (D.M.) | B129: 24381 | C129: 67.50432156 | D129: 361.1768763
A130: El Ranchito (D.M.) | B130: 10660 | C130: 63.72378061 | D130: 167.2844878
A131: Taveras (D.M.) | B131: 12425 | C131: 114.632903 | D131: 108.3894735
A132: Don Juan Rodriguez | B132: 13017 | C132: 38.52655092 | D132: 337.8708888
A133: Municipio Constanza | B133: 66316 | C133: 852.1684283 | D133: 77.82029678
A134: Constanza | B134: 42889 | C134: 261.0407832 | D134: 164.2999974
A135: Tireo (D.M.) | B135: 14868 | C135: 298.2506677 | D135: 49.85068472
A136: La Sabina (D.M.) | B136: 8559 | C136: 292.8769775 | D136: 29.22387439
A137: Municipio Jarabacoa | B137: 65059 | C137: 676.1651526 | D137: 96.21761748
A138: Jarabacoa | B138: 47237 | C138: 314.235384 | D138: 150.3236185
A139: Buena Vista (D.M.) | B139: 13760 | C139: 99.01784999 | D139: 138.9648432
A140: Manabao (D.M.) | B140: 4062 | C140: 262.9119185 | D140: 15.4500413
A141: Municipio Jima Abajo | B141: 29289 | C141: 116.8394112 | D141: 250.6774016
A142: Jima Abajo | B142: 17082 | C142: 57.9895885 | D142: 294.5701192
A143: Rincón (D.M.) | B143: 12207 | C143: 58.84982269 | D143: 207.4262834
A144: Provincia Sánchez Ramírez | B144: 162642 | C144: 1177.632183 | D144: 138.109337
A145: Municipio Cotuí | B145: 84193 | C145: 654.7750831 | D145: 128.5830848
A146: Cotuí | B146: 57396 | C146: 251.8313238 | D146: 227.9144593
A147: Quita Sueño (D.M.) | B147: 3781 | C147: 23.09813937 | D147: 163.6928386
A148: Caballero (D.M.) | B148: 2423 | C148: 53.35973952 | D148: 45.40876739
A149: Comedero Arriba (D.M.) | B149: 2603 | C149: 48.27176983 | D149: 53.92385672
A150: Platanal (D.M.) | B150: 3946 | C150: 61.99607167 | D150: 63.64919411
A151: Zambrana Abajo (D.M.) | B151: 14044 | C151: 216.2180389 | D151: 64.95295246
A152: Municipio Cevicos | B152: 16311 | C152: 244.716755 | D152: 66.65256737
A153: Cevicos | B153: 10797 | C153: 197.3916164 | D153: 54.69837168
A154: La Cueva (D.M.) | B154: 5514 | C154: 47.32513862 | D154: 116.5131294
A155: Municipio Fantino | B155: 23780 | C155: 89.23782861 | D155: 266.4789179
A156: Fantino | B156: 23780 | C156: 89.23782861 | D156: 266.4789179
A157: Municipio Villa La Mata | B157: 38358 | C157: 188.9025164 | D157: 203.057115
A158: Villa La Mata | B158: 12526 | C158: 36.89579051 | D158: 339.4967238
A159: La Bija (D.M.) | B159: 10253 | C159: 34.88425641 | D159: 293.9148216
A160: Angelina (D.M.) | B160: 11077 | C160: 39.7969995 | D160: 278.3375666
A161: Hernando Alonzo (D.M.) | B161: 4502 | C161: 77.32546996 | D161: 58.22143729
A162: Provincia Monseñor Nouel | B162: 195547 | C162: 1002.881036 | D162: 194.9852406
A163: Municipio Bonao | B163: 144923 | C163: 688.371643 | D163: 210.5301714
A164: Bonao | B164: 81560 | C164: 141.9762562 | D164: 574.4622528
A165: Sabana del Puerto (D.M.) | B165: 11141 | C165: 134.7680965 | D165: 82.66793323
A166: Juma Bejucal (D.M.) | B166: 33113 | C166: 72.72069022 | D166: 455.344963
A167: Arroyo Toro - Masipedro (D.M.) | B167: 3003 | C167: 102.8815142 | D167: 29.18891721
A168: Jayaco (D.M.) | B168: 9600 | C168: 30.02046007 | D168: 319.781908
A169: La Salvia - Los Quemados (D.M.) | B169: 6506 | C169: 206.0046259 | D169: 31.58181508
A170: Municipio Maimón | B170: 23885 | C170: 83.39282727 | D170: 286.4155202
A171: Maimón | B171: 23885 | C171: 83.39282727 | D171: 286.4155202
A172: Municipio Piedra Blanca | B172: 26739 | C172: 231.1165653 | D172: 115.6948658
A173: Piedra Blanca | B173: 14543 | C173: 118.8164167 | D173: 122.3989109
A174: Villa de Sonador (D.M.) | B174: 8114 | C174: 54.04220254 | D174: 150.1419191
A175: Juan Adrián (D.M.) | B175: 4082 | C175: 58.25794609 | D175: 70.06769503
A177: Región Cibao Nordeste | B177: 675895 | C177: 4176.932843 | D177: =+B177/C177 -> 161.8161042
A178: Provincia Duarte | B178: 308353 | C178: 1651.158803 | D178: 186.749451
A179: Municipio San Francisco de Macorís | B179: 202716 | C179: 759.7357293 | D179: 266.8243604
A180: San Francisco de Macorís | B180: 159742 | C180: 285.1816174 | D180: 560.1412933
A181: La Peña (D.M.) | B181: 12918 | C181: 249.9483883 | D181: 51.68266972
A182: Cenoví (D.M.) | B182: 16322 | C182: 91.34963051 | D182: 178.6761469
A183: Jaya (D.M.) | B183: 5529 | C183: 95.79853189 | D183: 57.71487194
A184: Presidente Don Antonio Guzmán Fernández (D.M.) | B184: 8205 | C184: 37.45756112 | D184: 219.0478972
A185: Municipio Arenoso | B185: 13890 | C185: 142.9964408 | D185: 97.13528477
A186: Arenoso | B186: 3990 | C186: 7.82647734 | D186: 509.8079029
A187: Las Coles (D.M.) | B187: 6389 | C187: 91.07007506 | D187: 70.15476814
A188: El Aguacate (D.M.) | B188: 3511 | C188: 44.09988842 | D188: 79.61471391
A189: Municipio Castillo | B189: 16786 | C189: 134.8027783 | D189: 124.5226561
A190: Castillo | B190: 16786 | C190: 134.8027783 | D190: 124.5226561
A191: Municipio Pimentel | B191: 19033 | C191: 120.2211271 | D191: 158.3165992
A192: Pimentel | B192: 19033 | C192: 120.2211271 | D192: 158.3165992
A193: Municipio Villa Riva | B193: 36066 | C193: 322.9938889 | D193: 111.6615553
A194: Villa Riva | B194: 11447 | C194: 92.7567138 | D194: 123.4088567
A195: Agua Santa del Yuna (D.M.) | B195: 5131 | C195: 37.67495255 | D195: 136.1912797
A196: Cristo Rey de Guaraguao (D.M.) | B196: 4924 | C196: 74.68558554 | D196: 65.92972344
A197: Las Taranas (D.M.) | B197: 11836 | C197: 86.90562526 | D197: 136.1937155
A198: Barraquito (D.M.) | B198: 2728 | C198: 30.9710118 | D198: 88.08236612
A199: Municipio Las Guáranas | B199: 14099 | C199: 89.75407606 | D199: 157.0847879
A200: Las Guáranas | B200: 14099 | C200: 89.75407606 | D200: 157.0847879
A201: Municipio Eugenio María de Hostos | B201: 5763 | C201: 80.654763 | D201: 71.45269276
A202: Eugenio María de Hostos | B202: 4494 | C202: 62.22642142 | D202: 72.22012607
A203: Sabana Grande (D.M.) | B203: 1269 | C203: 18.42834158 | D203: 68.86132397
A204: Provincia María Trinidad Sánchez | B204: 156633 | C204: 1205.523151 | D204: 129.9294832
... 397 more rows
